[Event "*** Titled Tuesday Blitz"]
[Site "Chess.com"]
[Date "2019.04.02"]
[Round "6"]
[White "Panchenko_Dmitry"]
[Black "Satscho"]
[Result "1-0"]
[WhiteElo "2530"]
[BlackElo "2301"]
[TimeControl "180+2"]
[EndTime "15:19:37 PDT"]
[Termination "Panchenko_Dmitry won by resignation"]

1. e4 {[%clk 0:03:01.9]} 1... c6 {[%clk 0:03:00.7]} 2. d4 {[%clk 0:03:02.3]}
2... d5 {[%clk 0:03:02.3]} 3. exd5 {[%clk 0:03:04.2]} 3... cxd5 {[%clk
0:03:02.8]} 4. Bd3 {[%clk 0:03:05.2]} 4... Nf6 {[%clk 0:03:02.3]} 5. h3 {[%clk
0:03:05.8]} 5... Nc6 {[%clk 0:02:54.4]} 6. c3 {[%clk 0:03:06.6]} 6... g6 {[%clk
0:02:48.1]} 7. Bf4 {[%clk 0:03:05.2]} 7... Bg7 {[%clk 0:02:47.4]} 8. Nd2 {[%clk
0:03:03.7]} 8... O-O {[%clk 0:02:47.9]} 9. Ne2 {[%clk 0:03:02]} 9... Re8 {[%clk
0:02:34.3]} 10. O-O {[%clk 0:03:00.2]} 10... e5 {[%clk 0:02:33.5]} 11. dxe5
{[%clk 0:02:59.9]} 11... Nxe5 {[%clk 0:02:35.4]} 12. Bc2 {[%clk 0:02:45.6]}
12... Nc6 {[%clk 0:02:17.7]} 13. Bg5 {[%clk 0:02:39.2]} 13... h6 {[%clk
0:02:16.8]} 14. Bxf6 {[%clk 0:02:38.6]} 14... Qxf6 {[%clk 0:02:18]} 15. Nb3
{[%clk 0:02:26.4]} 15... Qg5 {[%clk 0:02:09.7]} 16. Kh1 {[%clk 0:02:15.8]} 16...
Qh4 {[%clk 0:01:29.4]} 17. Ng1 {[%clk 0:02:07]} 17... g5 {[%clk 0:01:12.1]} 18.
Qxd5 {[%clk 0:02:01.7]} 18... Be6 {[%clk 0:01:08.8]} 19. Qe4 {[%clk 0:01:54.2]}
19... f5 {[%clk 0:01:06.5]} 20. Qxh4 {[%clk 0:01:53.2]} 20... gxh4 {[%clk
0:01:08.4]} 21. Nc5 {[%clk 0:01:49.5]} 21... Bc4 {[%clk 0:01:07.5]} 22. Rfe1
{[%clk 0:01:46]} 22... b6 {[%clk 0:01:08.9]} 23. Bb3 {[%clk 0:01:29.1]} 23...
Bxb3 {[%clk 0:00:59]} 24. Nxb3 {[%clk 0:01:30.2]} 24... Ne5 {[%clk 0:01:00.6]}
25. Re2 {[%clk 0:00:50]} 25... Nd3 {[%clk 0:00:57.8]} 26. Rd2 {[%clk 0:00:50.5]}
26... Rad8 {[%clk 0:00:44.5]} 27. Nf3 {[%clk 0:00:49]} 27... Bf6 {[%clk
0:00:38.4]} 28. Nbd4 {[%clk 0:00:46.2]} 28... Nf4 {[%clk 0:00:32.5]} 29. Rad1
{[%clk 0:00:44.5]} 29... a5 {[%clk 0:00:23.9]} 30. Nxf5 {[%clk 0:00:42]} 30...
Rxd2 {[%clk 0:00:25.8]} 31. Rxd2 {[%clk 0:00:42.5]} 31... a4 {[%clk 0:00:26.8]}
32. Nxh6+ {[%clk 0:00:42.1]} 32... Kh7 {[%clk 0:00:26.3]} 33. Ng4 {[%clk
0:00:42.4]} 33... Bg7 {[%clk 0:00:24.8]} 34. a3 {[%clk 0:00:41.8]} 34... b5
{[%clk 0:00:15.6]} 35. Nxh4 {[%clk 0:00:39.6]} 35... Re1+ {[%clk 0:00:14.5]} 36.
Kh2 {[%clk 0:00:40.1]} 36... Ne2 {[%clk 0:00:15.3]} 37. Nf3 {[%clk 0:00:37.8]}
1-0

[Event "*** Titled Tuesday Blitz"]
[Site "Chess.com"]
[Date "2019.04.02"]
[Round "6"]
[White "kuli4ik"]
[Black "Micki-taryan"]
[Result "0-1"]
[WhiteElo "2777"]
[BlackElo "2959"]
[TimeControl "180+2"]
[EndTime "15:19:38 PDT"]
[Termination "Micki-taryan won by resignation"]

1. d4 {[%clk 0:03:01]} 1... Nf6 {[%clk 0:03:01.2]} 2. Bg5 {[%clk 0:03:00.1]}
2... e6 {[%clk 0:03:00.3]} 3. e4 {[%clk 0:03:00.2]} 3... h6 {[%clk 0:03:01.9]}
4. Bxf6 {[%clk 0:03:00.7]} 4... Qxf6 {[%clk 0:03:03.8]} 5. c3 {[%clk 0:03:02.5]}
5... d6 {[%clk 0:03:02.7]} 6. Bd3 {[%clk 0:03:03.2]} 6... Nd7 {[%clk 0:03:03.6]}
7. Ne2 {[%clk 0:03:03.7]} 7... g6 {[%clk 0:03:00.8]} 8. O-O {[%clk 0:03:04.4]}
8... Bg7 {[%clk 0:03:01.7]} 9. Nd2 {[%clk 0:03:05.3]} 9... O-O {[%clk
0:03:02.1]} 10. f4 {[%clk 0:03:06.8]} 10... Qe7 {[%clk 0:03:03.7]} 11. Kh1
{[%clk 0:03:04.2]} 11... c5 {[%clk 0:03:04.7]} 12. f5 {[%clk 0:03:02.7]} 12...
cxd4 {[%clk 0:02:58.1]} 13. cxd4 {[%clk 0:03:03.4]} 13... e5 {[%clk 0:02:54]}
14. fxg6 {[%clk 0:02:41.4]} 14... fxg6 {[%clk 0:02:55.9]} 15. Rxf8+ {[%clk
0:02:41.2]} 15... Nxf8 {[%clk 0:02:55.5]} 16. dxe5 {[%clk 0:02:41.3]} 16... dxe5
{[%clk 0:02:53.5]} 17. Nc3 {[%clk 0:02:42.1]} 17... Ne6 {[%clk 0:02:53.8]} 18.
Bc4 {[%clk 0:02:42.6]} 18... Kh7 {[%clk 0:02:54.2]} 19. Nd5 {[%clk 0:02:40.1]}
19... Qd6 {[%clk 0:02:49.4]} 20. Nf3 {[%clk 0:02:35.5]} 20... Nd4 {[%clk
0:02:50.9]} 21. Rc1 {[%clk 0:02:28.8]} 21... Bg4 {[%clk 0:02:48.1]} 22. Be2
{[%clk 0:02:29.7]} 22... Bxf3 {[%clk 0:02:44.4]} 23. Bxf3 {[%clk 0:02:30.7]}
23... Rf8 {[%clk 0:02:46]} 24. Rc3 {[%clk 0:02:28.8]} 24... Rf7 {[%clk
0:02:32.1]} 25. h3 {[%clk 0:02:27.7]} 25... Qd8 {[%clk 0:02:32.6]} 26. Qe1
{[%clk 0:02:21.1]} 26... Qg5 {[%clk 0:02:29.8]} 27. Kh2 {[%clk 0:02:13.6]} 27...
h5 {[%clk 0:02:28.9]} 28. h4 {[%clk 0:01:22.5]} 28... Qd8 {[%clk 0:02:29.9]} 29.
Kh3 {[%clk 0:01:23.3]} 29... Bh6 {[%clk 0:02:26.6]} 30. Qg3 {[%clk 0:00:50.4]}
30... Bf4 {[%clk 0:02:27]} 31. Nxf4 {[%clk 0:00:51]} 31... Rxf4 {[%clk
0:02:28.4]} 32. Qg5 {[%clk 0:00:49.8]} 32... Qxg5 {[%clk 0:02:09.6]} 33. hxg5
{[%clk 0:00:50.5]} 33... Ne6 {[%clk 0:02:09.9]} 34. Kg3 {[%clk 0:00:49.7]} 34...
Nxg5 {[%clk 0:02:11]} 35. Rc7+ {[%clk 0:00:46.1]} 35... Rf7 {[%clk 0:02:11.9]}
36. Rc5 {[%clk 0:00:46.5]} 36... Re7 {[%clk 0:02:13.4]} 37. Rd5 {[%clk
0:00:38.8]} 37... Kg7 {[%clk 0:02:14.6]} 38. Rd6 {[%clk 0:00:40]} 38... Ne6
{[%clk 0:02:08.5]} 39. Bd1 {[%clk 0:00:33]} 39... Nc5 {[%clk 0:02:09.4]} 40. Bc2
{[%clk 0:00:25.9]} 40... Rc7 {[%clk 0:02:08.8]} 41. a3 {[%clk 0:00:14.2]} 41...
Nd7 {[%clk 0:02:07.2]} 42. Bb3 {[%clk 0:00:14.5]} 42... Nf6 {[%clk 0:02:06.9]}
43. Kf3 {[%clk 0:00:15.7]} 43... Re7 {[%clk 0:02:03.2]} 44. Bc4 {[%clk
0:00:14.7]} 44... g5 {[%clk 0:02:04.5]} 45. b3 {[%clk 0:00:15.6]} 45... g4+
{[%clk 0:02:04.7]} 46. Ke3 {[%clk 0:00:17]} 46... h4 {[%clk 0:02:06.3]} 47. Be6
{[%clk 0:00:17.1]} 47... Ne8 {[%clk 0:01:59.8]} 48. Rd7 {[%clk 0:00:18.2]} 48...
Rxd7 {[%clk 0:02:00.8]} 49. Bxd7 {[%clk 0:00:20.1]} 49... Nf6 {[%clk 0:02:02.7]}
50. Bc8 {[%clk 0:00:21.6]} 50... b6 {[%clk 0:02:04.2]} 51. Kd3 {[%clk
0:00:22.7]} 51... Kg6 {[%clk 0:02:05.8]} 52. Ke3 {[%clk 0:00:23.1]} 52... Kg5
{[%clk 0:02:07.2]} 53. b4 {[%clk 0:00:24.2]} 53... Nh5 {[%clk 0:02:07.1]} 54.
Ba6 {[%clk 0:00:19.9]} 54... Nf4 {[%clk 0:02:07]} 55. Kf2 {[%clk 0:00:21]} 55...
Ne6 {[%clk 0:02:08.2]} 56. Bc4 {[%clk 0:00:16.6]} 56... Nd4 {[%clk 0:02:09.6]}
57. Ke3 {[%clk 0:00:17.6]} 57... h3 {[%clk 0:02:11]} 58. gxh3 {[%clk 0:00:18.9]}
58... gxh3 {[%clk 0:02:12.9]} 59. Bf1 {[%clk 0:00:19.8]} 59... Kg4 {[%clk
0:02:14.2]} 60. Bxh3+ {[%clk 0:00:17]} 60... Kxh3 {[%clk 0:02:15.2]} 61. Kd3
{[%clk 0:00:18.9]} 61... b5 {[%clk 0:02:16.3]} 0-1

[Event "*** Titled Tuesday Blitz"]
[Site "Chess.com"]
[Date "2019.04.02"]
[Round "6"]
[White "Mikedannnn"]
[Black "adriangschnitzer"]
[Result "0-1"]
[WhiteElo "2512"]
[BlackElo "2420"]
[TimeControl "180+2"]
[EndTime "15:19:41 PDT"]
[Termination "adriangschnitzer won by resignation"]

1. e4 {[%clk 0:03:01.9]} 1... e6 {[%clk 0:03:00.7]} 2. d4 {[%clk 0:03:02.7]}
2... d5 {[%clk 0:03:01.6]} 3. Nc3 {[%clk 0:03:03.4]} 3... Nf6 {[%clk 0:03:02]}
4. e5 {[%clk 0:03:03.9]} 4... Nfd7 {[%clk 0:03:03.1]} 5. f4 {[%clk 0:03:04.9]}
5... c5 {[%clk 0:03:04.4]} 6. Nf3 {[%clk 0:03:05.6]} 6... Nc6 {[%clk 0:03:05.3]}
7. Be3 {[%clk 0:03:06.6]} 7... b6 {[%clk 0:03:06.3]} 8. Qd2 {[%clk 0:03:06.6]}
8... Be7 {[%clk 0:03:07.1]} 9. O-O-O {[%clk 0:02:56.7]} 9... c4 {[%clk
0:03:07.8]} 10. g4 {[%clk 0:02:56.5]} 10... b5 {[%clk 0:03:08.5]} 11. f5 {[%clk
0:02:44.3]} 11... b4 {[%clk 0:03:07.3]} 12. Ne2 {[%clk 0:02:45.3]} 12... Qa5
{[%clk 0:03:04.1]} 13. Kb1 {[%clk 0:02:44.9]} 13... Nb6 {[%clk 0:03:02.7]} 14.
Nf4 {[%clk 0:02:42.4]} 14... c3 {[%clk 0:03:01.3]} 15. Qf2 {[%clk 0:02:16.4]}
15... cxb2 {[%clk 0:02:59.4]} 16. f6 {[%clk 0:02:12.1]} 16... gxf6 {[%clk
0:02:50.8]} 17. exf6 {[%clk 0:02:13.2]} 17... Na4 {[%clk 0:02:50.5]} 18. Bd2
{[%clk 0:02:11.3]} 18... Nc3+ {[%clk 0:02:43.1]} 19. Bxc3 {[%clk 0:02:09.7]}
19... bxc3 {[%clk 0:02:45]} 20. Nd3 {[%clk 0:02:02]} 20... Ba6 {[%clk
0:02:42.2]} 21. Nfe5 {[%clk 0:01:46.2]} 21... Bc4 {[%clk 0:01:58.4]} 22. Nxc4
{[%clk 0:01:44.7]} 22... dxc4 {[%clk 0:01:59.2]} 23. Bg2 {[%clk 0:01:39.4]}
23... Rc8 {[%clk 0:01:47.2]} 24. fxe7 {[%clk 0:00:31.5]} 24... cxd3 {[%clk
0:01:46.6]} 25. Bxc6+ {[%clk 0:00:30.3]} 25... Rxc6 {[%clk 0:01:46.9]} 26. Rhf1
{[%clk 0:00:24.9]} 26... f5 {[%clk 0:01:46.9]} 27. Qg2 {[%clk 0:00:21.5]} 27...
Ra6 {[%clk 0:01:41.6]} 28. Qa8+ {[%clk 0:00:13.5]} 28... Kf7 {[%clk 0:01:42.2]}
29. e8=Q+ {[%clk 0:00:14.6]} 29... Rxe8 {[%clk 0:01:42.4]} 30. Qb7+ {[%clk
0:00:16]} 30... Re7 {[%clk 0:01:41.3]} 31. Qb3 {[%clk 0:00:17.3]} 31... Rb6
{[%clk 0:00:34.6]} 32. Qc4 {[%clk 0:00:18.3]} 32... dxc2+ {[%clk 0:00:16.5]} 33.
Kxc2 {[%clk 0:00:18.9]} 33... Rb4 {[%clk 0:00:16.4]} 34. Qc6 {[%clk 0:00:20.1]}
34... Qxa2 {[%clk 0:00:14.2]} 35. Rb1 {[%clk 0:00:20.7]} 35... Qb3+ {[%clk
0:00:14.2]} 0-1

[Event "*** Titled Tuesday Blitz"]
[Site "Chess.com"]
[Date "2019.04.02"]
[Round "6"]
[White "gmjoey1"]
[Black "chessdjw"]
[Result "1-0"]
[WhiteElo "2509"]
[BlackElo "2606"]
[TimeControl "180+2"]
[EndTime "15:19:42 PDT"]
[Termination "gmjoey1 won on time"]

1. e4 {[%clk 0:03:01.9]} 1... g6 {[%clk 0:03:01.9]} 2. h4 {[%clk 0:03:01]} 2...
Bg7 {[%clk 0:02:57.2]} 3. h5 {[%clk 0:03:01]} 3... c5 {[%clk 0:02:57.7]} 4. d3
{[%clk 0:03:00.5]} 4... Nc6 {[%clk 0:02:57.8]} 5. h6 {[%clk 0:03:00.9]} 5... Bf6
{[%clk 0:02:57.5]} 6. Nc3 {[%clk 0:03:00.7]} 6... e6 {[%clk 0:02:55.7]} 7. Nf3
{[%clk 0:03:00.1]} 7... Nge7 {[%clk 0:02:55.2]} 8. e5 {[%clk 0:02:42.1]} 8...
Nxe5 {[%clk 0:02:28.7]} 9. Ne4 {[%clk 0:02:41]} 9... N7c6 {[%clk 0:02:29.9]} 10.
Nd6+ {[%clk 0:02:23.1]} 10... Kf8 {[%clk 0:02:11.9]} 11. Bf4 {[%clk 0:02:10.5]}
11... Nxf3+ {[%clk 0:01:56.6]} 12. Qxf3 {[%clk 0:02:09.1]} 12... Bxb2 {[%clk
0:01:57]} 13. Rb1 {[%clk 0:01:58.6]} 13... Bc3+ {[%clk 0:01:54.8]} 14. Kd1
{[%clk 0:01:58.3]} 14... f6 {[%clk 0:01:32.5]} 15. Ne4 {[%clk 0:01:51.1]} 15...
Be5 {[%clk 0:01:18.9]} 16. Bxe5 {[%clk 0:01:29.2]} 16... Nxe5 {[%clk 0:01:20.8]}
17. Qf4 {[%clk 0:01:29]} 17... Kf7 {[%clk 0:01:15.6]} 18. Nxc5 {[%clk
0:01:08.3]} 18... d5 {[%clk 0:00:55.6]} 19. d4 {[%clk 0:01:06.9]} 19... g5
{[%clk 0:00:22.4]} 20. Qg3 {[%clk 0:00:58.5]} 20... Ng6 {[%clk 0:00:15.4]} 21.
Nxb7 {[%clk 0:00:44.3]} 21... Qd7 {[%clk 0:00:16.6]} 22. Nd6+ {[%clk 0:00:43.6]}
22... Ke7 {[%clk 0:00:17]} 23. Nb5 {[%clk 0:00:25.9]} 23... Nf4 {[%clk
0:00:10.6]} 24. Qa3+ {[%clk 0:00:25.5]} 24... Kf7 {[%clk 0:00:04.1]} 25. g3
{[%clk 0:00:26.1]} 25... Ng6 {[%clk 0:00:02.9]} 26. Nd6+ {[%clk 0:00:26.2]}
26... Kg8 {[%clk 0:00:04.3]} 27. Bb5 {[%clk 0:00:25.5]} 27... Qc7 {[%clk
0:00:03.4]} 28. Rb3 {[%clk 0:00:20.3]} 28... Bd7 {[%clk 0:00:04.4]} 29. Rc3
{[%clk 0:00:20.8]} 29... Qd8 {[%clk 0:00:05.5]} 30. Nb7 {[%clk 0:00:21.1]} 30...
Qe8 {[%clk 0:00:05.8]} 31. Rc7 {[%clk 0:00:20.4]} 31... Nf8 {[%clk 0:00:05.3]}
32. Nc5 {[%clk 0:00:19.5]} 32... Rd8 {[%clk 0:00:03.5]} 33. Qxa7 {[%clk
0:00:17.6]} 1-0

[Event "*** Titled Tuesday Blitz"]
[Site "Chess.com"]
[Date "2019.04.02"]
[Round "6"]
[White "GM_RobertoMogranzini"]
[Black "gonzaga23"]
[Result "1-0"]
[WhiteElo "2462"]
[BlackElo "2345"]
[TimeControl "180+2"]
[EndTime "15:19:42 PDT"]
[Termination "GM_RobertoMogranzini won by resignation"]

1. e4 {[%clk 0:03:01.9]} 1... c6 {[%clk 0:03:00.7]} 2. d3 {[%clk 0:03:02.6]}
2... d5 {[%clk 0:03:00.9]} 3. Nf3 {[%clk 0:03:04.1]} 3... dxe4 {[%clk 0:02:59]}
4. Ng5 {[%clk 0:03:05.4]} 4... Nf6 {[%clk 0:02:56.7]} 5. Nc3 {[%clk 0:03:06.1]}
5... Bf5 {[%clk 0:02:53.3]} 6. Ngxe4 {[%clk 0:03:02.6]} 6... Nxe4 {[%clk
0:02:53.9]} 7. dxe4 {[%clk 0:03:03.3]} 7... Qxd1+ {[%clk 0:02:54.3]} 8. Kxd1
{[%clk 0:03:05.1]} 8... Bg6 {[%clk 0:02:55.6]} 9. f3 {[%clk 0:03:04.3]} 9... Nd7
{[%clk 0:02:51.3]} 10. Be3 {[%clk 0:03:04]} 10... e5 {[%clk 0:02:43.9]} 11. a3
{[%clk 0:03:01.7]} 11... Bc5 {[%clk 0:02:44.2]} 12. Ke2 {[%clk 0:03:00]} 12...
O-O-O {[%clk 0:02:40.7]} 13. Rd1 {[%clk 0:02:58.3]} 13... Bxe3 {[%clk
0:02:08.9]} 14. Kxe3 {[%clk 0:03:00.2]} 14... Nc5 {[%clk 0:02:06.4]} 15. Bc4
{[%clk 0:02:54.9]} 15... Kc7 {[%clk 0:02:06.5]} 16. b4 {[%clk 0:02:53.2]} 16...
Nd7 {[%clk 0:01:41.4]} 17. Bb3 {[%clk 0:02:49.2]} 17... a6 {[%clk 0:01:34.8]}
18. Na4 {[%clk 0:02:48]} 18... b6 {[%clk 0:01:07.8]} 19. Nb2 {[%clk 0:02:45.3]}
19... b5 {[%clk 0:01:06]} 20. Nd3 {[%clk 0:02:41.2]} 20... a5 {[%clk 0:00:57.4]}
21. Rd2 {[%clk 0:02:36]} 21... axb4 {[%clk 0:00:57.3]} 22. axb4 {[%clk
0:02:36.6]} 22... Ra8 {[%clk 0:00:57.1]} 23. Rhd1 {[%clk 0:02:33]} 23... Rhd8
{[%clk 0:00:57.8]} 24. g3 {[%clk 0:02:20.8]} 24... h6 {[%clk 0:00:52.2]} 25. f4
{[%clk 0:02:20.3]} 25... exf4+ {[%clk 0:00:50.2]} 26. gxf4 {[%clk 0:02:17]}
26... Re8 {[%clk 0:00:48.4]} 27. e5 {[%clk 0:02:07.4]} 27... f6 {[%clk
0:00:41.4]} 28. e6 {[%clk 0:02:02.7]} 28... Nf8 {[%clk 0:00:42]} 29. Nc5 {[%clk
0:02:01.8]} 29... Bf5 {[%clk 0:00:40.8]} 30. Rd7+ {[%clk 0:01:59.2]} 30... Nxd7
{[%clk 0:00:25.7]} 31. Rxd7+ {[%clk 0:02:01.1]} 31... Kc8 {[%clk 0:00:27.6]} 32.
Rxg7 {[%clk 0:01:57.2]} 32... Ra3 {[%clk 0:00:28.4]} 33. Kd2 {[%clk 0:01:47.6]}
33... Rxb3 {[%clk 0:00:21.3]} 34. cxb3 {[%clk 0:01:36.3]} 34... Bxe6 {[%clk
0:00:23.2]} 35. Rg6 {[%clk 0:01:36.9]} 35... Bd5 {[%clk 0:00:19.3]} 36. Rxf6
{[%clk 0:01:34.4]} 36... h5 {[%clk 0:00:18.1]} 37. Rh6 {[%clk 0:01:34.8]} 37...
Bf3 {[%clk 0:00:19]} 38. f5 {[%clk 0:01:34.1]} 38... Re2+ {[%clk 0:00:18.5]} 39.
Kd3 {[%clk 0:01:34.8]} 39... Rxh2 {[%clk 0:00:20.2]} 40. f6 {[%clk 0:01:34.9]}
40... Bd5 {[%clk 0:00:21.5]} 41. Kd4 {[%clk 0:01:32.2]} 41... Rf2 {[%clk
0:00:22]} 42. Ke5 {[%clk 0:01:33.3]} 42... h4 {[%clk 0:00:17.9]} 43. Rxh4 {[%clk
0:01:33.7]} 43... Re2+ {[%clk 0:00:17.4]} 44. Kd6 {[%clk 0:01:34.6]} 44... Kb8
{[%clk 0:00:18]} 45. Rh8+ {[%clk 0:01:34.6]} 45... Ka7 {[%clk 0:00:19]} 46. Rh7+
{[%clk 0:01:35.5]} 46... Ka8 {[%clk 0:00:18.6]} 47. Kc7 {[%clk 0:01:33.3]} 47...
Ka7 {[%clk 0:00:15]} 48. Kd6+ {[%clk 0:01:32.9]} 48... Ka8 {[%clk 0:00:16.1]}
49. Nd7 {[%clk 0:01:32.4]} 49... Re6+ {[%clk 0:00:14.8]} 50. Kc7 {[%clk
0:01:32.5]} 50... Ka7 {[%clk 0:00:16]} 51. f7 {[%clk 0:01:31.6]} 51... Re7
{[%clk 0:00:15.9]} 52. f8=Q {[%clk 0:01:30.3]} 1-0

[Event "*** Titled Tuesday Blitz"]
[Site "Chess.com"]
[Date "2019.04.02"]
[Round "6"]
[White "Guenplen"]
[Black "AryanTari"]
[Result "1-0"]
[WhiteElo "2930"]
[BlackElo "2848"]
[TimeControl "180+2"]
[EndTime "15:19:43 PDT"]
[Termination "Guenplen won by resignation"]

1. Nf3 {[%clk 0:03:01.9]} 1... Nf6 {[%clk 0:02:47.5]} 2. c4 {[%clk 0:03:02.2]}
2... c5 {[%clk 0:02:48]} 3. Nc3 {[%clk 0:03:02.5]} 3... d5 {[%clk 0:02:45.2]} 4.
cxd5 {[%clk 0:02:58.8]} 4... Nxd5 {[%clk 0:02:47.1]} 5. Qa4+ {[%clk 0:02:59]}
5... Nc6 {[%clk 0:02:31.8]} 6. Ne5 {[%clk 0:02:59.1]} 6... Nxc3 {[%clk
0:02:21.8]} 7. dxc3 {[%clk 0:02:54.5]} 7... Qc7 {[%clk 0:02:21.9]} 8. Bf4 {[%clk
0:02:42.5]} 8... Qa5 {[%clk 0:02:12.5]} 9. Qxa5 {[%clk 0:02:23.3]} 9... Nxa5
{[%clk 0:02:14.4]} 10. e4 {[%clk 0:02:24.9]} 10... a6 {[%clk 0:02:06.8]} 11.
O-O-O {[%clk 0:02:17]} 11... f6 {[%clk 0:02:01.3]} 12. Nc4 {[%clk 0:02:17.8]}
12... Nxc4 {[%clk 0:02:02.5]} 13. Bxc4 {[%clk 0:02:19.6]} 13... e6 {[%clk
0:02:01.5]} 14. a4 {[%clk 0:02:13.7]} 14... b6 {[%clk 0:01:47.3]} 15. Bc7 {[%clk
0:02:09.9]} 15... Bd7 {[%clk 0:01:34.4]} 16. Bxb6 {[%clk 0:02:09.1]} 16... Bxa4
{[%clk 0:01:35.3]} 17. Rd2 {[%clk 0:02:01.3]} 17... Rb8 {[%clk 0:01:29.4]} 18.
Bc7 {[%clk 0:01:58.3]} 18... Rc8 {[%clk 0:01:26.6]} 19. Ba5 {[%clk 0:01:25.5]}
19... Kf7 {[%clk 0:01:18.8]} 20. b3 {[%clk 0:01:21.1]} 20... Bc6 {[%clk
0:01:17.3]} 21. Rhd1 {[%clk 0:01:19.2]} 21... Be7 {[%clk 0:01:10.6]} 22. f3
{[%clk 0:01:14.9]} 22... Bb5 {[%clk 0:00:57.4]} 23. Kc2 {[%clk 0:01:05.1]} 23...
Bxc4 {[%clk 0:00:50.4]} 24. bxc4 {[%clk 0:01:07]} 24... f5 {[%clk 0:00:38.8]}
25. Rd7 {[%clk 0:01:04]} 25... Rhe8 {[%clk 0:00:38.4]} 26. R1d6 {[%clk 0:00:39]}
26... fxe4 {[%clk 0:00:31.8]} 27. fxe4 {[%clk 0:00:40.9]} 27... Kf6 {[%clk
0:00:24.7]} 28. Rxa6 {[%clk 0:00:36.2]} 28... Ra8 {[%clk 0:00:18.8]} 29. e5+
{[%clk 0:00:29.7]} 29... Kxe5 {[%clk 0:00:16.5]} 30. Rxe7 {[%clk 0:00:28.4]}
30... Rxa6 {[%clk 0:00:09.8]} 31. Bc7+ {[%clk 0:00:29.4]} 31... Kf6 {[%clk
0:00:07.7]} 32. Rxe8 {[%clk 0:00:31.3]} 32... Ra2+ {[%clk 0:00:09.3]} 33. Kd3
{[%clk 0:00:26.7]} 33... Rxg2 {[%clk 0:00:11.2]} 34. Bg3 {[%clk 0:00:21.1]}
34... g5 {[%clk 0:00:10]} 35. Rf8+ {[%clk 0:00:21.3]} 35... Ke7 {[%clk
0:00:10.4]} 36. Rh8 {[%clk 0:00:21.1]} 1-0

[Event "*** Titled Tuesday Blitz"]
[Site "Chess.com"]
[Date "2019.04.02"]
[Round "6"]
[White "Amirreza_p"]
[Black "TheBigBoss04"]
[Result "1-0"]
[WhiteElo "2766"]
[BlackElo "2561"]
[TimeControl "180+2"]
[EndTime "15:19:46 PDT"]
[Termination "Amirreza_p won by resignation"]

1. e4 {[%clk 0:03:01.6]} 1... g6 {[%clk 0:03:00.6]} 2. d4 {[%clk 0:03:02.2]}
2... Bg7 {[%clk 0:03:02.1]} 3. Nf3 {[%clk 0:03:02.6]} 3... d6 {[%clk 0:03:03.4]}
4. Be2 {[%clk 0:03:02.8]} 4... a6 {[%clk 0:03:04.8]} 5. O-O {[%clk 0:03:03.2]}
5... e6 {[%clk 0:03:06.3]} 6. Be3 {[%clk 0:03:01.7]} 6... b5 {[%clk 0:03:06]} 7.
Nbd2 {[%clk 0:03:00.3]} 7... Bb7 {[%clk 0:03:06.8]} 8. Re1 {[%clk 0:03:00.9]}
8... Nd7 {[%clk 0:03:06.6]} 9. a4 {[%clk 0:03:00.7]} 9... bxa4 {[%clk
0:03:03.2]} 10. Rxa4 {[%clk 0:02:59.7]} 10... Nb6 {[%clk 0:03:04.5]} 11. Ra5
{[%clk 0:02:59.6]} 11... Nf6 {[%clk 0:03:04.5]} 12. Bd3 {[%clk 0:02:58.6]} 12...
O-O {[%clk 0:03:02]} 13. h3 {[%clk 0:02:58.8]} 13... Qb8 {[%clk 0:02:15.1]} 14.
c3 {[%clk 0:02:58.6]} 14... Bc6 {[%clk 0:02:10.4]} 15. Qc2 {[%clk 0:02:57.5]}
15... Qb7 {[%clk 0:01:41.8]} 16. Rea1 {[%clk 0:02:54.7]} 16... Bb5 {[%clk
0:01:42.8]} 17. c4 {[%clk 0:02:45.9]} 17... Bc6 {[%clk 0:01:42.3]} 18. d5 {[%clk
0:02:41.6]} 18... Bd7 {[%clk 0:01:37.5]} 19. Bd4 {[%clk 0:02:32.9]} 19... c5
{[%clk 0:01:01.7]} 20. Bc3 {[%clk 0:02:24.2]} 20... exd5 {[%clk 0:00:53.5]} 21.
cxd5 {[%clk 0:02:07.1]} 21... Bb5 {[%clk 0:00:54]} 22. Bxb5 {[%clk 0:02:06.5]}
22... axb5 {[%clk 0:00:54.9]} 23. b3 {[%clk 0:01:51.7]} 23... b4 {[%clk
0:00:47.7]} 24. Bb2 {[%clk 0:01:40.8]} 24... Rxa5 {[%clk 0:00:48.2]} 25. Rxa5
{[%clk 0:01:41]} 25... Ra8 {[%clk 0:00:49.4]} 26. Rxa8+ {[%clk 0:01:41.8]} 26...
Qxa8 {[%clk 0:00:48.9]} 27. Nc4 {[%clk 0:01:42.5]} 27... Nxc4 {[%clk 0:00:45.1]}
28. Qxc4 {[%clk 0:01:44.4]} 28... Qa2 {[%clk 0:00:44.6]} 29. Bxf6 {[%clk
0:01:35.9]} 29... Bxf6 {[%clk 0:00:45.4]} 30. g3 {[%clk 0:01:35.4]} 30... Qb1+
{[%clk 0:00:34.1]} 31. Kg2 {[%clk 0:01:35.5]} 31... Bd4 {[%clk 0:00:35.3]} 32.
e5 {[%clk 0:01:32.9]} 32... dxe5 {[%clk 0:00:30.2]} 33. d6 {[%clk 0:01:33.5]}
33... Qf5 {[%clk 0:00:19.1]} 34. Qd5 {[%clk 0:01:33.9]} 34... Qd7 {[%clk
0:00:13.8]} 35. Ng5 {[%clk 0:01:27.8]} 35... Kg7 {[%clk 0:00:08.8]} 36. Ne4
{[%clk 0:01:24.5]} 36... f5 {[%clk 0:00:09.3]} 37. Nxc5 {[%clk 0:01:25.4]} 37...
Bxc5 {[%clk 0:00:09.4]} 38. Qxe5+ {[%clk 0:01:25.9]} 38... Kf7 {[%clk
0:00:09.5]} 39. Qxc5 {[%clk 0:01:27.3]} 39... Ke6 {[%clk 0:00:11.1]} 40. Qxb4
{[%clk 0:01:28.3]} 40... Qc6+ {[%clk 0:00:09.5]} 41. Kf1 {[%clk 0:01:26.7]}
41... Qh1+ {[%clk 0:00:06.7]} 42. Ke2 {[%clk 0:01:27.7]} 42... Qxh3 {[%clk
0:00:07.4]} 43. Qd4 {[%clk 0:01:28.3]} 43... Qg4+ {[%clk 0:00:02.8]} 44. Qxg4
{[%clk 0:01:26.2]} 44... fxg4 {[%clk 0:00:04.7]} 45. Ke3 {[%clk 0:01:27.6]}
45... g5 {[%clk 0:00:03.5]} 46. Ke4 {[%clk 0:01:26.1]} 46... Kxd6 {[%clk
0:00:02.2]} 47. Kf5 {[%clk 0:01:26.4]} 47... h6 {[%clk 0:00:03.5]} 48. Kxg4
{[%clk 0:01:27.1]} 1-0